bitfinex-derivatives/quotes_ETHF0:USTF0_20240924
["timestamp","ask_amount","ask_price","bid_price","bid_amount"]
[1727173771351,1.74511796,2651.5,2651.4,1.59717]
[1727173773654,1.36794796,2651.5,2651.4,1.59717]
[1727173773851,0.98594796,2651.5,2651.4,1.59717]
[1727173774052,0.98594796,2651.5,2651.4,2.58596394]
[1727173774260,1.73020796,2651.6,2651.4,2.58596394]
[1727173774660,1.73020796,2651.6,2651.5,0.3601]
[1727173774956,1.73270638,2651.6,2651.5,0.3601]
[1727173777951,1.35554638,2651.6,2651.5,0.73726]
[1727173778152,1.36558638,2651.7,2651.6,0.37714]
[1727173778358,0.98844638,2651.7,2651.6,1.59714]
[1727173778556,0.98844638,2651.7,2651.6,1.99374]
[1727173778765,0.98844638,2651.7,2651.6,2.37544]
[1727173778950,2.46138682,2651.7,2651.6,2.37544]
[1727173779765,2.46138682,2651.8,2651.7,0.37713]
[1727173779955,2.46138682,2651.8,2651.7,1.59713]
[1727173780262,2.83850682,2651.8,2651.7,1.22]
[1727173780457,3.21680682,2651.8,2651.7,1.22]
[1727173780657,3.21680682,2651.8,2651.7,1.59713]
[1727173782154,2.83968682,2651.8,2651.7,1.59713]
[1727173783464,3.21680682,2651.8,2651.7,1.59713]
[1727173783664,2.83968682,2651.8,2651.7,1.59713]
[1727173787064,1.36667852,2651.8,2651.7,1.59713]
[1727173788665,1.85967778,2651.9,2651.8,0.37712]
[1727173788666,0.98837852,2651.9,2651.8,0.37712]
[1727173788868,1.35897852,2651.9,2651.8,0.37712]
[1727173789267,0.98837852,2651.9,2651.8,0.37712]
[1727173789477,1.48256778,2652.0,2651.9,0.3771]
[1727173789478,0.98837852,2652.0,2651.9,0.3771]
[1727173789677,0.98837852,2652.1,2652.0,0.37709]
[1727173789974,0.98837852,2652.1,2652.0,2.58543522]
[1727173790182,0.98837852,2652.2,2652.1,0.37707]
[1727173790476,0.98837852,2652.2,2652.1,1.59707]
[1727173791365,0.98837852,2652.2,2652.1,2.58541522]
[1727173791577,0.3706,2652.3,2652.2,0.37706]
[1727173791778,1.35867987,2652.3,2652.2,0.37706]
[1727173792585,1.35867987,2652.3,2652.1,1.59706]
[1727173792885,1.35867987,2652.3,2652.1,2.20834522]
[1727173793079,0.98807987,2652.5,2652.2,6.43752815]
[1727173793385,1.73217987,2652.7,2652.4,4.57266235]
[1727173793593,1.73217987,2652.7,2652.5,1.22]
[1727173795287,1.73217987,2652.7,2652.5,1.59702]
[1727173795492,0.7441,2652.7,2652.5,1.59702]
[1727173796788,0.7441,2652.7,2652.4,3.2078]
[1727173796982,0.7441,2652.7,2652.5,1.22]
[1727173800086,1.12109,2652.7,2652.5,1.22]
[1727173800285,1.12109,2652.7,2652.5,1.59701]
[1727173800286,0.7441,2652.7,2652.5,1.59701]
[1727173800489,0.7441,2652.7,2652.5,1.22]
[1727173800995,0.7441,2652.7,2652.5,1.59702]
[1727173801490,0.7441,2652.7,2652.5,1.22]
[1727173801676,0.7441,2652.7,2652.5,1.5978]
[1727173801991,0.377,2652.6,2652.5,1.5978]
[1727173802190,1.85956778,2652.6,2652.5,1.5978]
[1727173802391,1.48256778,2652.6,2652.5,1.5978]
[1727173802978,1.48256778,2652.6,2652.5,1.97482]
[1727173803182,1.85956778,2652.6,2652.5,1.22]
[1727173803382,1.85536443,2652.6,2652.5,1.22]
[1727173803583,0.377,2652.6,2652.5,1.22]
[1727173803779,1.47832962,2652.6,2652.5,1.59701]
[1727173804094,0.377,2652.6,2652.5,1.22]
[1727173804295,1.85522272,2652.6,2652.5,1.59702]
[1727173806692,1.47822272,2652.6,2652.5,1.59702]
[1727173807198,0.9852212,2652.6,2652.5,1.59702]
[1727173808904,0.9852212,2652.6,2652.5,1.22]
[1727173809193,2.59931272,2652.7,2652.5,1.22]
[1727173809194,1.12109,2652.7,2652.5,1.22]
[1727173811695,1.12109,2652.7,2652.5,1.59701]
[1727173812493,1.12109,2652.7,2652.5,1.59702]
[1727173813295,0.377,2652.6,2652.5,1.22]
[1727173813494,0.37702,2652.5,2652.4,3.2078]
[1727173813690,0.75022,2652.5,2652.4,4.4278]
[1727173813897,0.75022,2652.5,2652.4,4.80483]
[1727173814193,0.3732,2652.5,2652.4,4.80483]
[1727173814901,0.75022,2652.5,2652.4,4.80483]
[1727173815195,0.75022,2652.5,2652.4,4.4278]
[1727173815401,0.75022,2652.5,2652.4,4.80483]
[1727173815802,0.75022,2652.5,2652.4,4.4278]
[1727173816003,0.3732,2652.5,2652.4,4.80483]
[1727173816699,0.3732,2652.5,2652.4,4.4278]
[1727173817295,1.3584212,2652.5,2652.4,4.4278]
[1727173817601,1.7354412,2652.5,2652.4,4.4278]
[1727173818606,1.7354412,2652.5,2652.4,1.22]
[1727173818904,2.22844272,2652.5,2652.4,1.22]
[1727173819693,2.22844272,2652.5,2652.2,1.59705]
[1727173819694,0.37704,2652.4,2652.2,1.59705]
[1727173819893,1.35544764,2652.3,2652.2,1.59705]
[1727173820101,2.22527147,2652.3,2652.2,1.59705]
[1727173820299,2.22527147,2652.3,2652.2,1.22]
[1727173820507,1.84822147,2652.3,2652.2,1.59706]
[1727173820907,1.84822147,2652.3,2652.2,1.97216]
[1727173822002,0.9858833,2652.3,2652.2,1.97216]
[1727173822396,1.84182147,2652.4,2652.2,1.97216]
[1727173822596,2.21885147,2652.4,2652.3,1.22]
[1727173823098,1.84182147,2652.4,2652.3,1.22]
[1727173823299,0.3635,2652.4,2652.3,1.22]
[1727173823493,0.3635,2652.4,2652.2,3.5829]
[1727173823806,0.74975,2652.3,2652.2,1.22]
[1727173825504,0.3727,2652.3,2652.2,1.59706]
[1727173825802,0.3635,2652.4,2652.3,0.37705]
[1727173826007,0.3635,2652.4,2652.3,1.59705]
[1727173826611,3.8462,2652.7,2652.4,0.37703]
[1727173826798,3.8462,2652.7,2652.5,1.95731]
[1727173826799,0.7577,2652.7,2652.5,1.95731]
[1727173827000,0.7577,2652.7,2652.5,2.94463451]
[1727173827293,0.37699,2652.8,2652.5,2.94463451]
[1727173827601,0.3705,2652.7,2652.5,1.72463451]
[1727173828696,0.3705,2652.7,2652.6,1.22]
[1727173829499,0.3705,2652.7,2652.6,2.20732451]
[1727173829699,0.3705,2652.7,2652.6,2.58432451]
[1727173829899,0.3705,2652.7,2652.6,2.20732451]
[1727173830603,0.3705,2652.7,2652.6,3.39014732]
[1727173831405,0.3705,2652.7,2652.6,2.20732451]
[1727173831804,0.7617,2652.9,2652.6,2.20732451]
[1727173832108,1.75103846,2653.2,2652.9,0.37695]
[1727173832309,0.7647,2653.2,2653.1,1.22]
[1727173832511,2.46843271,2653.2,2653.1,1.22]
[1727173833106,2.86393271,2653.3,2653.1,1.59693]
[1727173833307,1.97414503,2653.2,2653.1,4.80473]
[1727173833710,1.97414503,2653.3,2653.2,0.37692]
[1727173833909,1.97414503,2653.3,2653.2,1.59692]
[1727173834099,1.97414503,2653.3,2653.2,1.22]
[1727173834500,1.97414503,2653.3,2653.2,1.59692]
[1727173835105,1.97414503,2653.4,2653.3,0.3769]
[1727173835300,1.97414503,2653.4,2653.3,1.5969]
[1727173835699,1.97414503,2653.4,2653.3,5.3657]
[1727173835907,1.48035939,2653.7,2653.3,10.9888]
[1727173836100,0.98683514,2653.6,2653.5,3.58467]
[1727173836303,2.84523271,2654.0,2653.5,5.8578]
[1727173836304,2.35098503,2653.8,2653.5,5.8578]
[1727173836510,0.3987,2653.6,2653.5,5.8578]
[1727173836814,0.77556,2653.6,2653.5,5.8578]
[1727173837310,0.3987,2653.6,2653.5,5.8578]
[1727173837814,0.77556,2653.6,2653.5,5.8578]
[1727173838617,0.3987,2653.6,2653.5,5.8578]
[1727173839014,0.3987,2653.6,2653.5,6.23467]
[1727173839412,0.3834,2653.8,2653.5,10.00347]
[1727173839618,0.3834,2653.8,2653.7,2.65]
[1727173843116,0.3834,2653.8,2653.6,0.37685]
[1727173844024,0.37685,2653.7,2653.5,5.8578]
[1727173844219,0.37686,2653.6,2653.5,5.8578]
[1727173844518,0.74856,2653.6,2653.5,5.8578]
[1727173846018,0.37685,2653.7,2653.5,6.23467]
[1727173846314,0.3834,2653.8,2653.5,5.8578]
[1727173846518,0.3834,2653.8,2653.7,3.02685]
[1727173847315,0.3834,2653.8,2653.7,3.39005]
[1727173847513,0.3834,2653.8,2653.7,3.0132]
[1727173848524,0.76023,2653.8,2653.7,3.0132]
[1727173849515,0.76023,2653.8,2653.7,2.65]
[1727173851428,0.76023,2653.8,2653.5,5.8578]
[1727173851625,0.37686,2653.6,2653.5,5.8578]
[1727173851813,0.37686,2653.6,2653.5,3.2078]
[1727173852628,0.37686,2653.6,2653.5,3.58467]
[1727173854424,0.37686,2653.6,2653.5,3.2078]
[1727173855127,0.37686,2653.6,2653.5,3.58467]
[1727173855319,0.37686,2653.6,2653.5,3.2078]
[1727173855720,0.37686,2653.6,2653.5,3.58467]
[1727173856522,0.37686,2653.6,2653.5,0.37687]
[1727173857320,0.3605,2653.7,2653.4,0.37688]
[1727173857526,0.7556,2653.5,2653.4,0.37688]
[1727173860331,0.7556,2653.5,2653.4,1.59689]
[1727173860633,0.7556,2653.5,2653.4,1.22]
[1727173862231,0.7556,2653.5,2653.4,1.59689]
[1727173863335,3.2078,2654.1,2653.4,10.9888]
[1727173863633,0.37685,2653.7,2653.6,3.2078]
[1727173864039,1.13544,2653.8,2653.6,3.2078]
[1727173864232,0.37685,2653.7,2653.6,3.2078]
[1727173864437,0.37685,2653.7,2653.6,4.4278]
[1727173864737,0.37685,2653.7,2653.5,1.22]
[1727173864738,0.37686,2653.6,2653.5,1.22]
[1727173865030,0.74536,2653.6,2653.5,1.22]
[1727173865421,0.3685,2653.6,2653.5,1.22]
[1727173865629,0.37685,2653.7,2653.5,1.22]
[1727173865826,1.13544,2653.8,2653.6,1.22]
[1727173866026,1.13544,2653.8,2653.6,1.5858]
[1727173866027,0.7586,2653.8,2653.6,1.5858]
[1727173866233,3.2078,2654.1,2653.8,0.37683]
[1727173866234,3.5846,2654.1,2653.8,0.37683]
[1727173866429,1.1605,2654.0,2653.7,0.76804]
[1727173866623,1.1605,2654.0,2653.7,1.14124]
[1727173867732,1.1605,2654.0,2653.9,1.22]
[1727173868233,0.37683,2653.8,2653.7,1.22]
[1727173868431,0.37685,2653.7,2653.6,3.2078]
[1727173868630,0.37687,2653.5,2653.4,2.65]
[1727173868834,1.15045,2653.7,2653.3,3.2078]
[1727173868835,0.37689,2653.4,2653.3,3.2078]
[1727173869034,0.75889,2653.4,2653.3,3.2078]
[1727173870042,1.32423,2653.4,2652.9,3.0412]
[1727173870355,1.32423,2653.4,2652.9,2.65]
[1727173870356,0.37695,2653.0,2652.9,2.65]
[1727173871228,0.382,2653.0,2652.9,2.65]
[1727173871430,0.75895,2653.0,2652.9,2.65]
[1727173873238,1.97414503,2653.3,2652.9,6.4196]
[1727173873435,3.89577418,2653.8,2653.2,6.23472]
[1727173873436,3.08952503,2653.5,2653.2,6.23472]
[1727173873739,3.08952503,2653.5,2653.4,2.65]
[1727173873940,2.71264503,2653.5,2653.4,2.65]
[1727173874135,0.7385,2653.5,2653.4,2.65]
[1727173874341,2.71264503,2653.5,2653.4,2.65]
[1727173874650,3.08951503,2653.5,2653.4,2.65]
[1727173874933,2.71264503,2653.5,2653.4,2.65]
[1727173875138,3.08951503,2653.5,2653.4,2.65]
[1727173876433,6.85831503,2653.5,2653.4,2.65]
[1727173876640,0.3769,2653.3,2653.2,6.84512451]
[1727173877342,0.3769,2653.3,2653.2,8.53017409]
[1727173877541,0.3769,2653.3,2653.2,8.03393935]
[1727173878547,0.3769,2653.3,2653.2,7.0466803]
[1727173878935,0.3769,2653.3,2653.2,8.03414857]
[1727173880735,0.3769,2653.3,2653.2,6.84526827]
[1727173880935,0.3769,2653.3,2653.2,3.63746827]
[1727173881242,0.94227,2653.3,2653.1,0.98752811]
[1727173881542,0.94227,2653.3,2653.0,4.87033379]
[1727173881543,0.77342,2653.2,2653.0,4.37436811]
[1727173881841,0.3979,2653.1,2653.0,4.37436811]
[1727173882045,0.3979,2653.1,2653.0,5.56355093]
[1727173882246,0.3979,2653.1,2653.0,6.05951661]
[1727173882929,0.3979,2653.1,2653.0,5.68257661]
[1727173883140,0.77483,2653.1,2653.0,5.68257661]
[1727173883446,0.77483,2653.1,2653.0,4.19908282]
[1727173884544,2.37176368,2653.1,2653.0,3.0099]
[1727173884734,2.74869368,2653.1,2653.0,3.0099]
[1727173884934,0.77483,2653.1,2653.0,3.0099]
[1727173885363,2.37036368,2653.2,2653.1,0.37693]
[1727173885648,1.97386368,2653.3,2653.2,0.37692]
[1727173885841,1.97386368,2653.3,2653.2,3.02692]
[1727173886049,1.97386368,2653.3,2653.2,2.65]
[1727173886243,2.35076368,2653.3,2653.2,2.65]
[1727173887944,1.97386368,2653.3,2653.2,2.65]
[1727173888448,2.35076368,2653.3,2653.2,2.65]
[1727173888840,1.97386368,2653.3,2653.2,3.02692]
[1727173889042,1.97386368,2653.3,2653.2,2.65]
[1727173890837,1.97386368,2653.3,2653.2,3.02692]
[1727173891234,2.35076368,2653.3,2653.2,2.65]
[1727173891436,0.3769,2653.3,2653.2,2.65]
[1727173893245,0.37692,2653.2,2653.1,3.2078]
[1727173893548,1.15302,2653.2,2653.1,3.2078]
[1727173893952,2.09532,2653.2,2653.1,3.2078]
[1727173896457,0.37693,2653.1,2653.0,3.63739965]
[1727173897252,1.31927,2653.1,2653.0,3.63739965]
[1727173897640,1.31927,2653.1,2653.0,0.98739965]
[1727173897848,1.31932,2653.0,2652.9,0.98739965]
[1727173898054,1.69842,2653.0,2652.9,0.98739965]
[1727173898359,0.37696,2652.9,2652.8,4.01458258]
[1727173898559,0.3942,2652.9,2652.8,5.20385072]
[1727173898747,0.3942,2652.9,2652.8,5.69972193]
[1727173898942,0.3942,2652.9,2652.8,6.07172193]
[1727173899848,0.3942,2652.9,2652.8,3.39896]
[1727173899849,0.77116,2652.9,2652.8,3.39896]
[1727173900853,0.77116,2652.9,2652.8,3.022]
[1727173901049,2.25243548,2652.9,2652.8,2.65]
[1727173903759,0.77116,2652.9,2652.8,2.65]
[1727173904262,2.25226261,2652.9,2652.8,2.65]
[1727173906557,1.87530261,2652.9,2652.6,3.2078]
[1727173906861,0.37706,2652.2,2652.1,1.42758912]
[1727173907055,0.94258,2652.5,2652.0,1.48349379]
[1727173907056,1.48140858,2652.4,2652.0,0.98758912]
[1727173907363,0.37709,2652.0,2651.8,0.98758912]
[1727173907551,0.3704,2651.9,2651.8,0.98758912]
[1727173907753,0.3704,2651.9,2651.7,4.19538912]
[1727173908267,0.74751,2651.9,2651.7,3.2078]
[1727173909265,0.3704,2651.9,2651.7,3.2078]
[1727173909461,0.74751,2651.9,2651.7,3.2078]
[1727173909661,0.37712,2651.8,2651.7,3.2078]
[1727173910364,0.7475,2651.9,2651.7,3.2078]
[1727173912564,0.7475,2651.9,2651.6,3.2078]
[1727173913372,0.3704,2651.9,2651.6,3.2078]
[1727173913559,0.37712,2651.8,2651.6,3.2078]
[1727173915263,0.37713,2651.7,2651.6,3.2078]
[1727173915461,0.3704,2651.9,2651.3,0.37718]
[1727173915762,0.74985,2651.6,2651.3,0.37718]
[1727173915962,0.3718,2651.5,2651.3,0.37718]
[1727173916959,0.74896,2651.5,2651.3,0.37718]
[1727173917262,0.3718,2651.5,2651.4,0.37717]
[1727173917573,0.3718,2651.5,2651.3,0.37718]
[1727173918255,0.3718,2651.5,2651.4,0.37717]
[1727173920163,0.3984,2652.1,2651.4,2.65]
[1727173920358,0.37712,2651.8,2651.6,0.37714]
[1727173920558,0.37711,2651.9,2651.6,0.37714]
[1727173920975,1.1298,2652.0,2651.7,0.37712]
[1727173921462,0.7527,2652.0,2651.9,0.3771]
[1727173922462,0.7527,2652.0,2651.7,0.7547]
[1727173922663,0.7527,2652.0,2651.8,0.3771]
[1727173923171,0.7527,2652.0,2651.8,0.37711]
[1727173923376,0.7527,2652.0,2651.7,0.3747]
[1727173923377,0.37711,2651.9,2651.7,0.3747]
[1727173923678,1.1298,2652.0,2651.7,0.75183]
[1727173923974,0.3771,2651.9,2651.7,0.75183]
[1727173924280,0.7527,2652.0,2651.7,0.75183]
[1727173924281,1.1298,2652.0,2651.7,0.75183]
[1727173925174,0.7527,2652.0,2651.8,0.37711]
[1727173926176,1.12979,2652.0,2651.8,0.37711]
[1727173927272,7.17906,2652.5,2651.9,0.3771]
[1727173927477,4.27534,2652.4,2652.2,0.37705]
[1727173927676,4.27534,2652.4,2652.0,0.3754]
[1727173927677,0.37705,2652.3,2652.1,0.37707]
[1727173929782,4.27534,2652.4,2652.2,0.37705]
[1727173930180,0.7713,2652.4,2652.3,0.37705]
[1727173930477,0.7713,2652.4,2652.3,3.02705]
[1727173930688,4.87887857,2652.6,2652.4,0.37702]
[1727173930873,4.87887857,2652.6,2652.4,0.77352]
[1727173931280,5.25588857,2652.6,2652.4,0.77352]
[1727173931781,1.14639,2652.7,2652.4,0.3965]
[1727173932382,1.14639,2652.7,2652.4,0.77352]
[1727173932681,0.7694,2652.7,2652.6,0.377]
[1727173933578,0.7694,2652.7,2652.5,0.37701]
[1727173934379,0.7694,2652.7,2652.6,0.377]
[1727173934871,1.1464,2652.7,2652.4,0.3965]
[1727173935076,1.1464,2652.7,2652.5,0.37702]
[1727173935967,0.7694,2652.7,2652.5,0.37702]
[1727173936169,4.45894,2653.1,2652.5,2.65]
[1727173936374,4.45894,2653.1,2652.4,4.54687]
[1727173936375,4.8347,2653.1,2652.7,3.02698]
[1727173936685,4.8347,2653.1,2652.8,0.37696]
[1727173936686,0.37695,2653.0,2652.8,0.37696]
[1727173936981,0.37695,2653.0,2652.7,3.58478]
[1727173937181,4.8347,2653.1,2652.7,3.58478]
[1727173937374,8.42705,2653.1,2652.4,3.6043]
[1727173937579,0.37697,2652.9,2652.6,0.37699]
[1727173937891,0.37697,2652.9,2652.4,3.6043]
[1727173938278,0.37697,2652.9,2652.7,0.37698]
[1727173938979,0.37698,2652.8,2652.5,3.02701]
[1727173939188,0.3826,2652.7,2652.6,0.377]
[1727173939477,0.7723,2652.7,2652.6,0.377]
[1727173945586,0.7723,2652.7,2652.4,3.2078]
[1727173945790,0.7723,2652.7,2652.5,0.37702]
[1727173946186,1.14929,2652.7,2652.4,3.58482]
[1727173946785,1.14929,2652.7,2652.5,0.37701]
[1727173950289,0.37701,2652.6,2652.4,3.58483]
[1727173950488,0.367,2652.5,2652.4,3.58483]
[1727173953300,4.51442,2652.5,2652.4,3.2078]
[1727173953497,5.45697,2652.5,2652.4,3.2078]
[1727173954001,14.10697,2652.5,2652.1,3.2078]
[1727173954208,0.37706,2652.2,2652.1,3.2078]
[1727173954496,0.37706,2652.2,2652.1,3.58487]
[1727173954897,0.7781,2652.3,2652.1,3.58487]
[1727173956489,0.37706,2652.2,2652.1,3.2078]
[1727173957399,0.7781,2652.3,2652.1,3.58487]
[1727173958102,0.37706,2652.2,2652.1,3.58487]
[1727173959493,0.37706,2652.2,2652.1,3.2078]
[1727173960298,0.37706,2652.2,2652.1,3.58487]
[1727173960600,0.37706,2652.2,2652.1,3.2078]
[1727173962404,0.37706,2652.2,2652.1,3.58487]
[1727173962704,0.37706,2652.2,2652.1,0.37707]
[1727173962901,0.37706,2652.2,2652.1,3.58487]
[1727173963306,0.37706,2652.2,2652.1,3.2078]
[1727173963698,0.94269,2652.1,2651.8,0.37711]
[1727173963895,0.3771,2651.9,2651.8,0.37711]
[1727173964397,0.37712,2651.8,2651.7,0.37712]
[1727173964594,0.75972,2651.8,2651.7,0.37712]
[1727173964793,0.75972,2651.8,2651.7,0.37713]
[1727173965900,0.3826,2651.8,2651.7,0.37713]
[1727173966199,0.37714,2651.7,2651.5,3.97375]
[1727173966504,0.77254,2651.7,2651.5,3.97375]
[1727173966998,0.77254,2651.7,2651.5,3.58495]
[1727173968301,0.3954,2651.7,2651.6,0.37714]
[1727173968505,0.3826,2651.8,2651.7,0.37713]
[1727173969507,0.3826,2651.8,2651.6,1.13633]
[1727173969904,0.3826,2651.8,2651.7,0.37713]
[1727173970805,0.3826,2651.8,2651.6,1.13634]
[1727173970806,0.75972,2651.8,2651.6,1.13634]
[1727173971107,0.3826,2651.8,2651.6,1.13634]
[1727173974098,0.3826,2651.8,2651.7,0.37713]
[1727173974508,0.3826,2651.8,2651.6,0.7592]
[1727173974509,0.3826,2651.8,2651.6,1.13633]
[1727173975109,0.3826,2651.8,2651.7,0.37713]
[1727173981311,0.3628,2651.9,2651.8,0.37712]
[1727173981506,0.7394,2652.1,2651.7,3.0184]
[1727173981807,0.7394,2652.1,2651.7,0.3684]
[1727173981808,0.3922,2652.0,2651.7,0.3684]
[1727173982013,0.3922,2652.0,2651.6,0.7592]
[1727173982206,0.76929,2652.0,2651.8,0.37712]
[1727173982414,0.76929,2652.0,2651.7,0.37712]
[1727173982415,0.3771,2651.9,2651.7,0.37712]
[1727173982812,0.3922,2652.0,2651.6,0.73904]
[1727173983027,0.37714,2651.7,2651.5,4.19538912]
[1727173983327,1.13414,2651.6,2651.5,3.2078]
[1727173983529,1.50664,2651.6,2651.5,3.2078]
[1727173984423,1.1295,2651.6,2651.5,3.2078]
[1727173985028,1.50664,2651.6,2651.5,3.2078]
[1727173985630,5.27784,2651.6,2651.5,3.2078]
[1727173988030,6.22071,2651.6,2651.5,3.2078]
[1727173989527,7.70211858,2651.6,2651.5,3.2078]
[1727173991033,8.64498858,2651.6,2651.5,3.2078]
[1727173991234,0.37722,2651.1,2651.0,0.37722]
[1727173991535,0.37722,2651.1,2650.8,0.37725]
[1727173991536,0.37724,2650.9,2650.8,0.37725]
[1727173992533,1.51814,2651.0,2650.9,0.37724]
[1727173992932,1.51814,2651.0,2650.8,0.37725]
[1727173992933,0.37724,2650.9,2650.8,0.37725]
[1727173994529,0.37724,2650.9,2650.7,3.58506]
[1727173995434,0.37726,2650.8,2650.7,3.2078]
[1727173996032,0.37731,2650.5,2650.3,0.77642]
[1727173996341,0.3864,2650.4,2650.3,0.37732]
[1727173996641,0.7509,2650.4,2650.3,0.37732]
[1727173997239,0.7509,2650.4,2650.2,0.3641]
[1727173997240,0.37733,2650.3,2650.2,0.37734]
[1727173997543,0.37733,2650.3,2650.1,0.37735]
[1727173997742,0.37735,2650.2,2650.0,0.37736]
[1727173998039,0.37735,2650.2,2649.9,3.5967]
[1727173998040,0.37736,2650.1,2649.9,3.58518]
[1727173998345,4.34421,2650.4,2649.9,3.2078]
[1727173998346,0.37737,2650.0,2649.9,3.2078]
[1727173999140,0.74187,2650.0,2649.9,3.2078]
[1727173999442,1.10427,2650.0,2649.9,3.2078]
[1727173999637,1.10427,2650.0,2649.9,3.58519]
[1727173999638,0.7269,2650.0,2649.9,3.58519]
[1727173999839,0.3645,2650.0,2649.9,3.58519]
[1727174000342,0.3645,2650.0,2649.9,3.2078]
[1727174000637,0.3645,2650.0,2649.8,0.37739]
[1727174001049,0.3645,2650.0,2649.7,3.58521]
[1727174001741,0.3645,2650.0,2649.8,0.3774]
[1727174001941,0.3645,2650.0,2649.8,0.37739]
[1727174002748,0.3645,2650.0,2649.7,3.58521]
[1727174002937,0.3645,2650.0,2649.8,0.3774]
[1727174004538,0.3645,2650.0,2649.9,0.37739]
[1727174004930,3.19,2650.1,2649.9,0.37739]
[1727174005446,0.3837,2650.2,2649.7,3.2078]
[1727174005630,0.3837,2650.2,2650.1,0.37736]
[1727174006233,0.3864,2650.4,2650.3,0.37733]
[1727174006438,3.5764,2650.4,2650.3,0.37733]
[1727174007346,0.3864,2650.4,2650.3,0.37733]
[1727174009538,0.37734,2650.3,2650.0,1.11357]
[1727174011349,0.76372,2650.4,2650.1,0.37736]
[1727174013242,3.19,2650.3,2650.1,0.37736]
[1727174015142,0.76372,2650.4,2650.1,0.37736]
[1727174015448,3.19,2650.3,2650.1,0.37736]
[1727174015750,3.56733,2650.3,2650.0,0.74976]
[1727174016344,3.19,2650.3,2650.1,0.37735]
[1727174017052,3.56733,2650.3,2650.1,0.37735]
[1727174017247,3.19,2650.3,2650.2,0.37734]
[1727174017447,0.3826,2650.5,2650.2,3.7736]
[1727174017747,0.3683,2650.8,2650.7,0.37727]
[1727174018147,0.3683,2650.8,2650.6,0.37728]
[1727174018749,0.74556,2650.8,2650.5,0.37729]
[1727174019547,0.3683,2650.8,2650.7,0.37727]
[1727174019851,0.3683,2650.8,2650.6,0.37728]
[1727174020047,0.3683,2650.8,2650.4,0.3968]
[1727174020243,0.3683,2650.8,2650.7,0.37727]
[1727174022851,0.3683,2650.8,2650.4,0.3968]
[1727174023158,0.3683,2650.8,2650.7,0.37727]
[1727174025756,0.3683,2650.8,2650.6,0.37728]
[1727174026260,0.3683,2650.8,2650.7,0.37727]
[1727174030658,0.3767,2650.9,2650.8,0.37726]
[1727174031661,0.3767,2650.9,2650.8,0.77096]
[1727174032355,0.3767,2650.9,2650.8,0.3937]
[1727174032561,0.3767,2650.9,2650.8,0.77096]
[1727174033060,0.3767,2650.9,2650.8,0.3937]
[1727174033254,0.3767,2650.9,2650.7,0.3899]
[1727174033653,0.3767,2650.9,2650.7,0.76717]
[1727174033853,0.3767,2650.9,2650.8,0.37726]
[1727174034456,0.3767,2650.9,2650.7,0.76716]
[1727174034650,0.98598885,2650.8,2650.7,0.76716]
[1727174036159,0.98598885,2650.8,2650.7,0.3899]
[1727174036857,2.23535858,2650.9,2650.7,0.3899]
[1727174037252,1.85810858,2650.9,2650.7,0.3899]
[1727174037461,1.48140858,2650.8,2650.7,0.3899]
[1727174038557,1.48140858,2650.8,2650.7,0.76717]
[1727174038757,1.48140858,2650.8,2650.7,0.3899]
[1727174038954,1.48140858,2650.8,2650.7,0.76717]
[1727174039662,1.48140858,2650.8,2650.7,0.3899]
[1727174040256,1.85810858,2650.9,2650.7,0.76717]
[1727174040653,1.48140858,2650.8,2650.7,0.76717]
[1727174041264,0.98717594,2650.8,2650.7,0.76717]
[1727174041659,0.76523,2651.0,2650.7,1.75475912]
[1727174041852,0.388,2651.0,2650.8,0.37726]
[1727174042251,0.388,2651.0,2650.7,1.75474912]
[1727174042450,0.388,2651.0,2650.7,0.76716]
[1727174042764,0.388,2651.0,2650.7,1.75474912]
[1727174043161,0.76523,2651.0,2650.7,1.75474912]
[1727174043365,0.37725,2650.9,2650.7,1.37748912]
[1727174043662,1.98524,2651.0,2650.7,0.3899]
[1727174044263,1.98524,2651.0,2650.7,1.37748912]
[1727174044658,1.98524,2651.0,2650.7,0.3899]
[1727174044854,0.37725,2650.9,2650.7,0.3899]
[1727174045062,1.98524,2651.0,2650.7,0.76717]
[1727174045666,1.98524,2651.0,2650.7,1.75475912]
[1727174045962,0.37725,2650.9,2650.7,0.98758912]
[1727174046163,0.37725,2650.9,2650.6,3.2078]
[1727174046164,0.3659,2650.8,2650.6,3.2078]
[1727174046356,0.76257,2650.7,2650.6,3.2078]
[1727174046558,1.12347,2650.7,2650.6,3.2078]
[1727174046859,0.7462,2650.7,2650.6,3.2078]
[1727174047270,1.12347,2650.7,2650.6,3.2078]
[1727174047461,3.28666,2650.7,2650.6,3.2078]
[1727174047767,2.90939,2650.7,2650.3,0.98758912]
[1727174047961,1.22,2650.4,2650.3,0.37733]
[1727174048266,4.1472,2650.7,2650.5,0.37729]
[1727174048464,0.7462,2650.7,2650.5,1.3650576]
[1727174049266,0.7462,2650.7,2650.5,4.5728576]
[1727174049467,0.7462,2650.7,2650.6,0.9877676]
[1727174049861,0.7462,2650.7,2650.5,3.2078]
[1727174050666,1.73337594,2650.7,2650.5,3.2078]
[1727174050962,2.11065594,2650.7,2650.5,3.2078]
[1727174051166,0.98717594,2650.6,2650.5,3.2078]
[1727174053667,1.36446594,2650.6,2650.5,3.2078]
[1727174053874,1.85869858,2650.6,2650.5,3.2078]
[1727174054073,0.37729,2650.6,2650.5,3.2078]
[1727174055770,2.35239666,2650.6,2650.5,3.2078]
[1727174056175,0.37729,2650.6,2650.5,3.2078]
[1727174056373,1.86020308,2650.6,2650.5,3.2078]
[1727174056779,0.37729,2650.6,2650.5,4.1955676]